bitfinex-derivatives/quotes_ETHF0:USTF0_20260306
["timestamp","ask_amount","ask_price","bid_price","bid_amount"]
[1772762515619,3.25603725,2086.3,2086.0,41.24764022]
[1772762515814,3.25603725,2086.3,2086.1,0.44145499]
[1772762516215,3.25603725,2086.3,2086.0,41.24764022]
[1772762516718,0.5410397,2086.4,2086.0,41.24764022]
[1772762517311,0.00472175,2087.0,2086.0,41.24764022]
[1772762517312,0.5410397,2086.6,2086.1,0.56968447]
[1772762517516,0.5410397,2086.9,2086.0,40.80618523]
[1772762517716,0.5410397,2086.9,2086.0,0.00618523]
[1772762518722,0.5410397,2086.9,2086.0,0.5758697]
[1772762519422,0.5410397,2086.9,2086.1,0.56968447]
[1772762520722,0.5410397,2086.9,2086.0,16.75818523]
[1772762521416,0.57928583,2086.6,2085.5,0.54933049]
[1772762521921,0.57928583,2086.6,2085.6,40.8]
[1772762522318,0.57928583,2086.6,2085.5,0.54933049]
[1772762522623,0.57928583,2086.6,2085.6,0.00501841]
[1772762522822,0.57928583,2086.4,2085.6,0.00501841]
[1772762525723,0.57928583,2086.4,2085.3,17.31433049]
[1772762525923,0.57928583,2086.2,2085.1,41.34933049]
[1772762526118,0.57928583,2086.2,2084.5,9.85525973]
[1772762526119,0.57928583,2086.2,2084.7,0.54933049]
[1772762526319,0.57928583,2086.0,2084.7,0.54933049]
[1772762526520,0.57928583,2086.0,2085.0,0.54933049]
[1772762526723,0.57928583,2086.0,2085.1,0.54933049]
[1772762528223,0.57928583,2086.0,2085.4,0.54933049]
[1772762528923,4.02223682,2087.0,2085.4,0.54933049]
[1772762528924,0.57928583,2086.9,2085.7,0.54933049]
[1772762529121,0.57928583,2086.5,2085.4,0.54933049]
[1772762529322,0.57928583,2086.5,2085.2,0.54933049]
[1772762530128,0.57928583,2086.4,2085.4,0.54933049]
[1772762530529,0.57928583,2086.2,2085.0,0.54933049]
[1772762531027,0.57928583,2086.0,2085.0,0.54933049]
[1772762532729,0.57928583,2085.9,2085.0,0.54933049]
[1772762533831,0.57928583,2086.2,2085.2,0.54933049]
[1772762534031,0.57928583,2086.0,2085.2,0.54933049]
[1772762534435,0.57928583,2086.0,2085.0,0.54933049]
[1772762537038,0.57928583,2085.8,2085.0,0.54933049]
[1772762538742,0.57928583,2085.8,2084.8,0.54933049]
[1772762539743,0.57928583,2085.6,2084.8,0.54933049]
[1772762544642,0.57928583,2085.6,2084.7,40.80530143]
[1772762544844,0.57928583,2085.6,2084.8,0.54933049]
[1772762546446,0.57928583,2085.5,2084.8,0.54933049]
[1772762546649,0.58273323,2085.5,2084.8,0.54933049]
[1772762547846,0.0034474,2085.5,2084.8,0.54933049]
[1772762548247,6.00208933,2086.3,2085.0,0.54933049]
[1772762548248,0.57928583,2085.9,2085.0,0.54933049]
[1772762549152,0.58488113,2085.9,2085.0,0.54933049]
[1772762550950,0.58488113,2085.9,2084.8,0.58569136]
[1772762551349,0.57877388,2085.7,2084.8,0.58569136]
[1772762551550,6.85677388,2085.7,2084.8,0.58569136]
[1772762552048,0.57877388,2085.6,2084.8,0.58569136]
[1772762553048,0.58436918,2085.9,2085.0,0.58569136]
[1772762553345,0.58436918,2085.9,2085.2,0.58569136]
[1772762556352,0.0055953,2085.9,2085.2,0.58569136]
[1772762558545,0.58436918,2085.9,2085.2,0.58569136]
[1772762562057,0.0055953,2085.9,2085.2,0.58569136]
[1772762562453,0.0055953,2085.9,2085.3,0.58569136]
[1772762562658,0.57877388,2086.2,2085.3,0.58569136]
[1772762562853,4.01751507,2086.7,2085.3,0.58569136]
[1772762563059,0.57877388,2086.6,2085.7,0.58569136]
[1772762563456,0.36160016,2087.2,2086.2,0.58569136]
[1772762563656,0.36758413,2087.2,2086.2,0.59151977]
[1772762566960,0.36195659,2087.1,2086.2,0.59151977]
[1772762569965,0.39346305,2087.2,2086.2,0.59151977]
[1772762573865,0.38634408,2087.0,2086.2,0.59151977]
[1772762578972,0.38582124,2086.8,2086.2,0.59151977]
[1772762579173,0.38582124,2086.7,2086.2,0.59151977]
[1772762581870,6.66282124,2086.7,2086.2,0.00582841]
[1772762582075,0.57996228,2086.6,2085.9,0.57573635]
[1772762582267,0.57996228,2086.6,2085.8,0.57573635]
[1772762582968,0.57996228,2086.6,2085.8,0.00379126]
[1772762583367,0.57996228,2086.4,2085.8,0.00379126]
[1772762583567,0.57996228,2086.4,2085.4,0.57573635]
[1772762584375,6.277,2086.3,2085.4,0.57573635]
[1772762584575,0.57996228,2086.9,2085.6,0.57573635]
[1772762585470,0.57996228,2087.1,2085.8,0.57573635]
[1772762585676,6.85696228,2087.1,2085.8,0.57573635]
[1772762585880,0.57996228,2087.1,2085.8,0.57573635]
[1772762586081,0.57996228,2087.1,2085.9,0.57573635]
[1772762586379,6.86294625,2087.2,2086.1,0.57573635]
[1772762587274,0.00598397,2087.2,2086.3,0.57573635]
[1772762587680,0.00598397,2087.2,2086.4,0.57573635]
[1772762588382,0.00598397,2087.2,2086.6,0.57573635]
[1772762588773,6.277,2087.7,2086.6,0.57573635]
[1772762588977,6.85696228,2087.7,2086.6,0.57573635]
[1772762589378,0.57996228,2087.6,2086.6,0.57573635]
[1772762589579,0.57996228,2087.5,2086.6,0.57573635]
[1772762589879,0.58427972,2087.5,2086.6,0.57573635]
[1772762590782,0.00431744,2087.5,2086.6,0.57573635]
[1772762591188,0.00431744,2087.5,2086.7,0.57573635]
[1772762591384,0.57996228,2088.3,2086.9,0.57573635]
[1772762591686,0.57996228,2088.3,2087.1,0.57573635]
[1772762592480,0.5861509,2088.3,2087.1,0.57981856]
[1772762593786,0.5861509,2088.3,2087.2,40.8]
[1772762593985,6.8631509,2088.3,2087.3,0.57573635]
[1772762594182,0.57996228,2088.2,2087.3,0.57573635]
[1772762596386,0.00618862,2088.3,2087.3,0.57573635]
[1772762596781,0.57996228,2088.8,2087.3,0.57573635]
[1772762596984,0.57996228,2088.8,2087.4,0.57573635]
[1772762597182,0.57996228,2088.8,2087.5,0.57573635]
[1772762597789,0.58607334,2088.8,2087.5,0.57573635]
[1772762598791,0.00611106,2088.8,2087.7,0.57573635]
[1772762598986,0.00611106,2088.8,2087.8,0.57573635]
[1772762599386,0.00611106,2088.8,2088.0,0.57573635]
[1772762600192,0.58607334,2088.8,2088.0,0.57573635]
[1772762601593,0.00611106,2088.8,2088.0,0.57573635]
[1772762602187,0.57996228,2089.4,2088.0,0.57573635]
[1772762603190,0.58611624,2089.4,2088.0,0.57573635]
[1772762604894,0.58611624,2089.4,2088.2,0.57573635]
[1772762605897,0.00615396,2089.4,2088.4,0.57573635]
[1772762606389,6.85496228,2089.9,2088.4,0.57573635]
[1772762607286,0.00379591,2089.9,2088.6,0.57573635]
[1772762607491,0.00379591,2089.9,2088.8,0.57573635]
[1772762607688,0.00379591,2089.9,2089.0,0.57573635]
[1772762607888,0.58375819,2089.9,2089.0,0.57573635]
[1772762610293,0.58375819,2089.9,2089.1,40.8]
[1772762610491,0.58375819,2089.9,2089.0,0.56683473]
[1772762610995,0.58375819,2089.9,2089.0,41.36683473]
[1772762611196,0.58375819,2089.9,2088.8,0.56683473]
[1772762611398,0.57808536,2089.8,2088.8,0.56683473]
[1772762611695,0.57808536,2089.7,2088.8,0.56683473]
[1772762612396,0.57808536,2089.7,2088.7,40.8]
[1772762612397,0.57808536,2089.7,2088.6,0.57149007]
[1772762612898,0.58188127,2089.9,2088.8,0.56683473]
[1772762614398,0.00379591,2089.9,2089.0,0.56683473]
[1772762614593,0.58188127,2089.9,2089.0,0.56683473]
[1772762614795,0.57808536,2089.8,2088.8,0.56683473]
[1772762619900,0.57808536,2089.7,2088.8,0.56683473]
[1772762621700,0.57808536,2089.3,2088.6,0.57149007]
[1772762621900,0.57808536,2089.3,2088.6,0.00465534]
[1772762622096,0.57808536,2089.3,2087.7,0.23947]
[1772762622097,0.57808536,2089.1,2087.9,0.56683473]
[1772762622303,0.57808536,2088.9,2087.9,0.56683473]
[1772762622800,0.57808536,2088.9,2087.7,0.56683473]
[1772762623000,9.88086636,2089.3,2087.7,0.57205378]
[1772762623001,0.57808536,2088.7,2087.7,0.57205378]
[1772762623193,0.57808536,2088.7,2087.8,40.8]
[1772762623391,0.57808536,2088.7,2087.9,0.56683473]
[1772762627599,0.57808536,2088.7,2087.7,0.57205378]
[1772762628100,0.57808536,2088.7,2087.7,41.37205378]
[1772762628407,0.57808536,2088.7,2087.8,0.56683473]
[1772762633003,0.57808536,2088.9,2087.8,0.56683473]
[1772762633204,0.57808536,2088.9,2087.9,0.56683473]
[1772762634604,0.57808536,2089.4,2088.0,0.56683473]
[1772762635005,0.57808536,2089.4,2088.2,0.56683473]
[1772762635206,0.57808536,2089.4,2088.3,0.56683473]
[1772762635508,0.57808536,2089.7,2088.5,0.56683473]
[1772762635904,0.57808536,2089.5,2088.6,40.8]
[1772762636709,0.57808536,2089.3,2088.3,0.56683473]
[1772762637307,0.57808536,2089.3,2088.1,0.56683473]
[1772762637707,0.57808536,2089.3,2088.3,0.56683473]
[1772762638410,0.57808536,2089.1,2087.8,0.56683473]
[1772762638606,0.57808536,2089.0,2088.0,0.56683473]
[1772762640413,0.58508696,2088.8,2088.0,0.56683473]
[1772762640614,0.58508696,2088.8,2088.0,0.55484221]
[1772762641206,0.58508696,2088.8,2087.7,0.00521905]
[1772762641409,0.58508696,2088.8,2087.8,0.55484221]
[1772762642715,0.58508696,2088.8,2088.0,0.55484221]
[1772762644316,0.58508696,2089.0,2088.0,0.55484221]
[1772762646718,0.58508696,2088.8,2087.9,40.8]
[1772762646918,0.58508696,2088.8,2087.9,41.35484221]
[1772762647114,0.58508696,2088.6,2087.9,41.35484221]
[1772762647318,0.58508696,2088.5,2087.7,0.56006126]
[1772762647712,0.58508696,2088.5,2087.7,41.36006126]
[1772762648013,0.58508696,2088.3,2087.5,0.55484221]
[1772762648219,0.58508696,2088.3,2087.3,0.55484221]
[1772762648422,0.58508696,2088.3,2087.3,41.35484221]
[1772762649120,0.58508696,2088.3,2087.3,41.35978886]
[1772762649121,0.59076704,2088.3,2087.3,41.35978886]
[1772762649320,0.59076704,2088.3,2087.4,0.55484221]
[1772762649913,0.58508696,2088.1,2087.3,40.80494665]
[1772762650115,0.58508696,2087.9,2087.3,0.00494665]
[1772762651317,0.58508696,2087.9,2086.8,0.55484221]
[1772762652424,0.58508696,2087.9,2086.8,0.55900148]
[1772762652925,0.58508696,2087.9,2086.9,41.35484221]
[1772762653120,0.58508696,2087.9,2087.0,0.55484221]
[1772762656429,0.58508696,2087.7,2086.8,0.55900148]
[1772762656825,0.58508696,2087.6,2086.8,0.55900148]
[1772762657026,0.58508696,2087.6,2086.8,0.00415927]
[1772762657524,0.58508696,2087.6,2086.8,0.55900148]
[1772762658426,0.58508696,2087.6,2086.8,0.00415927]
[1772762659631,0.58508696,2087.3,2086.4,41.35484221]
[1772762660530,0.58508696,2087.3,2086.5,0.55484221]
[1772762660731,0.58508696,2087.3,2086.5,0.55892229]
[1772762660927,0.58508696,2087.6,2086.5,0.55892229]
[1772762664135,0.58508696,2087.1,2086.5,0.00408008]
[1772762664433,0.58508696,2086.9,2086.2,0.55484221]
[1772762664634,0.58508696,2086.9,2086.2,41.35484221]
[1772762664833,0.58508696,2086.9,2086.2,0.55484221]
[1772762665231,0.58508696,2086.9,2086.2,0.55988035]
[1772762667240,0.58508696,2086.9,2086.2,0.00503814]
[1772762667841,0.58508696,2086.9,2086.2,0.55988035]
[1772762668433,0.58508696,2086.9,2086.2,0.00503814]
[1772762668630,0.58508696,2086.9,2086.2,0.57096873]
[1772762670436,0.58508696,2086.9,2086.2,0.00503814]
[1772762672940,0.82466696,2086.9,2086.2,0.00503814]
[1772762673136,0.54187756,2086.8,2086.2,0.00503814]
[1772762673332,0.54608329,2086.8,2086.2,0.00503814]
[1772762674333,0.54608329,2086.8,2086.2,0.60102876]
[1772762679545,0.54187756,2086.6,2086.2,0.60102876]
[1772762682047,0.54187756,2086.6,2086.2,0.00503814]
[1772762684650,0.54187756,2086.6,2085.6,0.59599062]
[1772762685148,0.54187756,2086.4,2085.5,0.59599062]
[1772762685349,0.54187756,2086.2,2085.5,0.59599062]
[1772762685751,0.54187756,2086.2,2085.5,0.60137945]
[1772762688750,0.54187756,2086.2,2085.5,0.00538883]
[1772762691059,0.54187756,2086.2,2085.5,0.60137945]
[1772762691457,6.81987756,2086.1,2085.5,0.60137945]
[1772762691658,6.81987756,2086.0,2085.5,0.60137945]
[1772762693659,0.54187756,2085.9,2085.5,0.60137945]
[1772762694054,6.279,2086.0,2085.5,0.60137945]
[1772762694259,6.82087756,2086.0,2085.5,0.60137945]
[1772762695360,0.54187756,2085.9,2085.5,0.60137945]
[1772762695762,6.82087756,2086.0,2085.5,0.60137945]
[1772762696366,0.54187756,2086.5,2085.5,0.60137945]
[1772762696568,0.54187756,2086.3,2085.5,0.60137945]
[1772762700767,6.81987756,2086.3,2085.5,0.60137945]
[1772762700964,0.54134676,2086.6,2085.5,0.60137945]
[1772762702368,0.54555249,2086.8,2085.6,0.55625232]
[1772762702569,6.82355249,2086.8,2085.7,0.55625232]
[1772762702870,0.54134676,2086.7,2085.8,0.55625232]
[1772762703073,0.54555249,2086.8,2085.9,0.55625232]
[1772762703667,0.00420573,2086.8,2086.0,0.79593232]
[1772762703868,6.81934676,2087.2,2086.2,0.55625232]
[1772762704269,6.81934676,2087.2,2086.4,0.55625232]
[1772762704873,6.82452338,2087.2,2086.4,0.55625232]
[1772762705278,0.54134676,2087.1,2086.4,0.55625232]
[1772762705781,0.54134676,2087.1,2086.3,40.8]
[1772762705981,0.54134676,2087.1,2085.8,7.41019017]
[1772762705982,0.54134676,2087.1,2085.9,0.55625232]
[1772762706476,0.54134676,2086.9,2085.8,0.55625232]
[1772762706979,0.54134676,2086.7,2085.8,0.55625232]
[1772762707179,0.54134676,2086.5,2085.8,0.55625232]
[1772762710482,0.54134676,2086.3,2085.8,0.55625232]
[1772762712882,0.54134676,2086.2,2085.8,0.55625232]
[1772762713484,0.54134676,2086.2,2085.5,0.56164115]
[1772762713783,0.54134676,2086.2,2085.6,0.55625232]
[1772762715987,6.278,2086.3,2085.6,0.55625232]
[1772762716184,6.81934676,2086.3,2085.6,0.55625232]
[1772762716487,0.54134676,2086.2,2085.7,0.55625232]
[1772762716686,0.54134676,2086.2,2085.5,0.56164115]
[1772762717181,0.54134676,2086.2,2085.5,0.00538883]
[1772762718787,0.54134676,2086.0,2085.5,0.56164115]
[1772762720685,0.54134676,2086.5,2085.5,0.56164115]
[1772762720891,0.54134676,2086.3,2085.5,0.56164115]
[1772762721188,6.81934676,2086.2,2085.5,0.56164115]
[1772762721585,0.54134676,2086.1,2085.5,0.56164115]
[1772762722791,0.54134676,2086.1,2085.6,0.55625232]
[1772762723793,0.54134676,2086.7,2085.6,0.55625232]
[1772762723990,0.54134676,2086.5,2085.6,0.55625232]
[1772762724193,0.54134676,2086.3,2085.6,0.55625232]
[1772762724394,0.54134676,2086.2,2085.6,0.55625232]
[1772762726098,0.54134676,2086.2,2085.5,0.56164115]
[1772762726285,0.54134676,2086.2,2085.5,0.00538883]
[1772762727399,0.54134676,2086.2,2085.5,0.56164115]
[1772762727895,6.81934676,2086.1,2085.5,0.56164115]
[1772762728194,0.54134676,2086.0,2085.5,0.56164115]
[1772762730798,6.82035393,2086.5,2085.5,0.56164115]
[1772762731096,6.82035393,2086.5,2085.6,0.58413394]
[1772762731595,0.54235393,2086.4,2085.6,0.58413394]
[1772762732598,0.54235393,2086.4,2085.8,0.58413394]
[1772762732599,6.82035393,2086.4,2085.8,0.58413394]
[1772762733501,0.54235393,2086.4,2085.8,0.58413394]
[1772762734999,0.54235393,2086.9,2085.9,0.58413394]
[1772762735302,6.82035393,2086.8,2086.1,0.58413394]
[1772762735597,0.54235393,2086.8,2086.1,0.58413394]
[1772762740105,0.54235393,2086.8,2085.9,0.58413394]
[1772762748309,6.82035393,2086.7,2085.9,0.58413394]
[1772762748812,0.54235393,2086.6,2085.9,0.58413394]
[1772762751512,0.54235393,2086.7,2086.0,0.58413394]
[1772762756916,0.54235393,2087.0,2086.3,0.58413394]
[1772762757612,0.54235393,2087.0,2086.2,0.58413394]
[1772762758211,0.54235393,2087.1,2086.2,0.58413394]
[1772762758414,0.54235393,2087.1,2086.3,0.58413394]
[1772762759614,0.54235393,2087.0,2086.1,0.58413394]
[1772762762520,0.54293611,2086.8,2086.1,0.58413394]
[1772762762920,6.82093611,2086.7,2086.1,0.58413394]
[1772762764218,0.54293611,2086.6,2086.1,0.58413394]
[1772762764726,6.82093611,2086.7,2086.1,0.58413394]
[1772762765426,0.54293611,2086.7,2086.1,0.58413394]
[1772762766219,6.278,2086.9,2086.4,0.56448098]
[1772762766616,6.82093611,2086.9,2086.4,0.56448098]
[1772762766915,0.54293611,2086.8,2086.4,0.56448098]
[1772762767916,0.54293611,2087.1,2086.4,0.56448098]
[1772762768122,0.54293611,2087.0,2086.6,0.56448098]
[1772762768426,6.82611273,2087.2,2086.6,0.56448098]
[1772762769121,0.54811273,2087.2,2086.6,0.56448098]
[1772762769321,0.54811273,2087.2,2086.7,0.56448098]
[1772762769522,0.00517662,2087.2,2086.7,0.56448098]
[1772762770026,0.54811273,2087.2,2086.5,0.56448098]
[1772762770331,0.54293611,2087.0,2086.4,0.56448098]
[1772762771831,0.54293611,2086.8,2086.2,0.56448098]
[1772762772936,6.82093611,2086.8,2086.2,0.56448098]
[1772762774330,0.54293611,2086.8,2086.2,0.56448098]
[1772762776231,6.82093611,2086.8,2086.2,0.56448098]
[1772762781942,0.54293611,2086.8,2086.2,0.56448098]
[1772762782137,6.82093611,2086.8,2086.2,0.56448098]
[1772762782936,0.54293611,2086.8,2086.2,0.56448098]
[1772762783240,6.278,2086.9,2086.3,0.56448098]
[1772762783839,6.82093611,2086.9,2086.4,0.56448098]
[1772762787142,0.54293611,2086.9,2086.4,0.56448098]
[1772762789945,0.54293611,2086.9,2086.2,6.52280525]
[1772762790143,0.54293611,2086.9,2086.3,0.57010368]
[1772762791246,0.54293611,2086.9,2086.4,0.57010368]
[1772762792245,0.54293611,2086.9,2086.2,5.95270157]
[1772762792545,0.54293611,2086.9,2086.2,6.52280525]
[1772762793146,0.54293611,2086.9,2086.2,0.57010368]
[1772762794044,0.54293611,2086.9,2086.1,6.52280525]
[1772762794244,0.54293611,2086.9,2086.2,0.57010368]
[1772762796043,0.54293611,2086.9,2086.1,6.52280525]
[1772762796246,0.55798939,2086.6,2086.0,0.57010368]
[1772762796946,0.55798939,2086.6,2085.9,6.52280525]
[1772762797539,0.55798939,2086.4,2085.9,6.52280525]
[1772762797741,0.55798939,2086.4,2085.9,0.57010368]
[1772762798142,0.55798939,2086.3,2085.7,0.57010368]
[1772762798643,0.55798939,2086.1,2085.5,5.9580904]
[1772762798948,0.55798939,2085.9,2085.3,5.95270157]
[1772762799148,0.55798939,2085.9,2085.3,46.75270157]
[1772762799449,0.55798939,2085.9,2085.3,40.8]
[1772762799645,0.55798939,2085.9,2085.2,0.57010368]
[1772762799843,0.55798939,2085.9,2085.2,0.57430914]
[1772762800336,0.55798939,2085.9,2085.4,0.57010368]
[1772762800537,6.83698939,2086.1,2085.4,0.57010368]
[1772762800749,0.55798939,2086.0,2085.4,0.57010368]
[1772762801545,0.55798939,2085.9,2085.2,41.37430914]
[1772762801745,0.55798939,2085.9,2085.3,0.57010368]
[1772762802746,0.55798939,2085.9,2085.2,41.37430914]
[1772762803542,6.279,2086.1,2085.2,0.00420546]
[1772762803543,0.55798939,2085.7,2085.2,0.00420546]
[1772762803742,0.56405188,2085.7,2085.2,0.00420546]
[1772762805750,0.56405188,2085.7,2085.2,0.57430914]
[1772762806443,0.00606249,2085.7,2085.3,0.57010368]
[1772762806649,0.55798939,2085.8,2085.3,0.57010368]
[1772762807549,0.56339085,2085.8,2085.3,0.57010368]
[1772762807850,0.55798939,2086.1,2085.5,0.57010368]
[1772762808045,0.55798939,2086.3,2085.7,0.57010368]
[1772762808751,0.563745,2086.3,2085.7,0.57010368]
[1772762810051,0.00575561,2086.3,2085.9,0.57010368]
[1772762811343,0.563745,2086.3,2085.9,0.57010368]
[1772762811944,6.28,2086.4,2085.9,0.57010368]
[1772762812149,0.55798939,2086.5,2085.9,0.57010368]
[1772762812351,0.55798939,2086.5,2086.1,0.57010368]
[1772762812551,0.55798939,2086.6,2086.1,0.57010368]
[1772762813151,0.55798939,2086.5,2086.1,0.57010368]
[1772762813554,0.55798939,2086.3,2085.7,0.57010368]
[1772762817856,0.55798939,2086.3,2085.5,17.558]
[1772762817857,0.55798939,2086.3,2085.5,0.57010368]
[1772762818359,6.83698939,2086.3,2085.5,0.57010368]
[1772762818560,0.55798939,2086.2,2085.5,0.57010368]
[1772762819160,0.55798939,2086.4,2085.6,0.57010368]
[1772762820355,0.56144948,2086.5,2085.6,0.57010368]
[1772762820551,0.00533981,2086.6,2085.9,0.54557373]
[1772762820756,0.56678929,2086.6,2085.9,0.54557373]
[1772762821457,0.00533981,2086.6,2085.9,0.54557373]
[1772762821858,0.56678929,2086.6,2085.9,0.54557373]
[1772762824363,0.00533981,2086.6,2085.9,0.54557373]
[1772762824870,0.56144948,2086.9,2085.9,0.54557373]
[1772762825660,0.56631167,2086.9,2085.9,0.54557373]
[1772762829169,0.56631167,2086.9,2086.0,0.54557373]
[1772762835368,0.56631167,2086.9,2086.1,0.54557373]
[1772762841187,0.56631167,2086.9,2086.2,0.54557373]
[1772762842686,0.56144948,2087.3,2086.5,1.63423701]
[1772762842893,0.56144948,2087.3,2086.6,6.4982753]
[1772762843087,0.56144948,2087.3,2086.7,0.54557373]
[1772762843390,0.56144948,2087.3,2086.9,0.54557373]
[1772762843792,0.00484339,2087.3,2086.9,0.54908388]
[1772762844088,0.00484339,2087.3,2087.0,0.54557373]
[1772762844288,0.00484339,2087.3,2086.9,40.80351015]
[1772762844289,0.29831131,2087.3,2086.9,41.34908388]
[1772762844590,0.29831131,2087.3,2086.9,0.54908388]
[1772762849788,0.29738682,2087.5,2086.9,0.54908388]
[1772762850894,0.30328841,2087.5,2086.9,0.54908388]
[1772762852391,0.00590159,2087.5,2086.9,0.54908388]
[1772762853399,0.30281408,2087.5,2086.9,0.54908388]
[1772762856898,0.00590159,2087.5,2086.9,0.54908388]
[1772762857293,0.2986638,2087.5,2086.9,0.54908388]
[1772762870199,0.00590159,2087.5,2087.0,0.54249911]
[1772762870396,0.29518662,2088.6,2087.5,0.54249911]
[1772762870592,0.29518662,2088.6,2087.9,0.54249911]
[1772762871095,0.29371531,2088.9,2088.1,0.54249911]
[1772762871301,0.2995767,2088.9,2088.1,0.54249911]
[1772762871603,6.57171531,2089.3,2088.5,0.54249911]
[1772762871793,0.29371531,2089.7,2088.5,0.54249911]
[1772762872001,6.57171531,2089.7,2088.8,0.54249911]
[1772762872302,0.29371531,2089.6,2088.8,0.54249911]
[1772762872696,0.29823184,2089.6,2088.8,0.5464346]
[1772762873602,0.00451653,2089.6,2088.8,0.5464346]
[1772762873802,0.00451653,2089.6,2089.0,0.54249911]
[1772762873998,1.96240032,2090.4,2089.0,0.54249911]
[1772762874205,6.277,2090.3,2089.0,0.54249911]
[1772762874501,1.62873122,2090.1,2089.3,0.59748867]
[1772762874702,0.00921628,2090.0,2089.3,0.59748867]
[1772762875101,0.00921628,2089.9,2089.3,0.59748867]
[1772762877405,0.01178299,2089.4,2088.9,0.59159717]
[1772762878004,0.01178299,2089.6,2088.9,0.59159717]
[1772762879802,0.01411848,2089.1,2088.8,0.00393549]
[1772762880004,0.01411848,2088.9,2088.3,0.59033994]
[1772762880207,0.01859073,2090.0,2088.8,0.59033994]
[1772762880411,0.01411848,2089.9,2089.3,0.59033994]
[1772762880909,0.02186033,2090.0,2089.5,0.58870514]
[1772762881103,0.00447225,2090.0,2089.5,0.58870514]
[1772762881300,0.01738808,2090.4,2089.8,0.58870514]
[1772762881505,0.01738808,2090.2,2089.6,0.58870514]
[1772762881903,0.01738808,2089.8,2089.3,0.59258949]
[1772762882207,0.02099087,2089.8,2089.3,0.59258949]
[1772762882407,0.00360279,2089.8,2089.3,0.59258949]
[1772762885213,6.274,2090.1,2089.3,0.59258949]
[1772762885613,0.03582245,2090.4,2089.3,0.59258949]
[1772762885907,6.274,2090.3,2089.3,0.59258949]
[1772762886314,6.27990713,2090.3,2089.3,0.59258949]
[1772762886512,6.31572958,2090.3,2089.3,0.59258949]
[1772762887014,0.04057059,2090.2,2089.3,0.59258949]
[1772762887606,6.32047772,2090.3,2089.3,0.59258949]
[1772762887809,0.04057059,2090.2,2089.3,0.59258949]
[1772762888010,0.04057059,2090.2,2089.5,0.57711389]
[1772762888515,0.00590713,2090.3,2089.5,0.57711389]
[1772762889211,0.02916688,2090.1,2089.5,0.57711389]
[1772762890909,0.00590713,2090.3,2089.5,0.57711389]
[1772762892014,0.0440124,2090.3,2089.5,0.57711389]
[1772762893414,0.00590713,2090.3,2089.5,0.57711389]
[1772762894008,16.66307372,2091.0,2089.8,0.57936232]
[1772762894217,0.03607372,2090.9,2089.8,0.57936232]
[1772762894909,0.04085656,2090.9,2089.8,0.57936232]
[1772762897825,0.0615426,2090.5,2089.8,0.57936232]
[1772762898115,6.3325426,2090.4,2089.8,0.57936232]
[1772762899219,6.271,2090.5,2089.8,0.57936232]
[1772762900622,6.271,2090.7,2089.8,0.57936232]
[1772762901519,0.23913,2090.8,2089.8,0.57936232]
[1772762901720,6.51013,2090.8,2089.8,0.57936232]
[1772762902422,6.31548705,2090.8,2089.8,0.57936232]
[1772762902820,0.04422712,2090.7,2089.8,0.57936232]
[1772762905228,6.31605971,2090.6,2089.8,0.57936232]
[1772762905429,6.27,2090.5,2089.8,0.57936232]
[1772762905729,6.31605971,2090.5,2089.8,0.57936232]
[1772762905929,0.04605971,2090.4,2089.8,0.57936232]
[1772762906234,6.27,2090.4,2089.8,0.57936232]
[1772762906632,6.31442009,2090.4,2089.8,0.57936232]
[1772762906930,0.04442009,2090.3,2089.8,0.57936232]
[1772762907133,6.31442009,2090.4,2089.8,0.57936232]
[1772762909137,0.03594305,2090.3,2089.4,0.55427368]
[1772762909337,0.38161331,2090.1,2089.4,0.55427368]
[1772762909538,0.38161331,2089.9,2089.2,0.36444607]
[1772762909836,2.43778997,2090.0,2089.2,0.36444607]
[1772762909837,0.57144092,2089.7,2089.2,0.36444607]
[1772762910235,0.57144092,2089.7,2088.8,40.8]
[1772762910236,0.57144092,2089.7,2088.9,0.57666361]
[1772762910437,0.55604306,2089.6,2088.9,0.57666361]
[1772762910637,0.55604306,2089.6,2088.9,0.58028207]
[1772762910839,6.27,2089.6,2088.9,0.58028207]
[1772762911035,0.55604306,2089.5,2088.9,0.58028207]
[1772762911735,0.55604306,2089.7,2088.9,0.58028207]
[1772762911942,6.82604306,2089.6,2088.9,0.58028207]
[1772762912141,0.55604306,2089.5,2088.9,0.58028207]
[1772762913240,0.55604306,2090.0,2089.0,0.57666361]
[1772762913438,0.55604306,2089.9,2089.0,0.57666361]
[1772762915247,6.271,2089.8,2089.0,0.57666361]
[1772762915450,0.55604306,2090.1,2089.0,0.57666361]
[1772762915643,6.82704306,2090.0,2089.0,0.57666361]
[1772762915844,6.271,2090.0,2089.0,0.57666361]
[1772762916148,6.82704306,2090.0,2089.0,0.57666361]
[1772762916347,0.55604306,2089.9,2089.0,0.57666361]
[1772762916550,0.55604306,2089.8,2089.0,0.57666361]
[1772762917250,0.55604306,2090.3,2089.0,0.57666361]
[1772762917441,0.55604306,2090.1,2089.0,0.57666361]
[1772762919847,0.55604306,2089.9,2089.0,0.57666361]
[1772762923150,0.55604306,2089.8,2089.0,0.57666361]
[1772762924350,0.55604306,2089.8,2088.9,0.00361846]
[1772762924552,2.75461303,2089.8,2088.9,0.00361846]
[1772762924851,0.55604306,2089.7,2088.9,0.00361846]
[1772762925152,0.55604306,2089.5,2088.9,0.00361846]
[1772762925351,0.55604306,2089.3,2088.6,0.57666361]
[1772762926149,0.55604306,2089.5,2088.6,0.57666361]
[1772762926349,6.83223265,2089.5,2088.6,0.58082478]
[1772762926649,0.00518959,2089.5,2088.6,0.58082478]
[1772762928651,0.56123265,2089.5,2088.6,0.58082478]
[1772762932155,0.55604306,2089.3,2088.6,0.58082478]
[1772762934054,0.55604306,2089.4,2088.6,0.58082478]
[1772762934356,0.00518959,2089.5,2088.6,0.58082478]
[1772762934553,0.56123265,2089.5,2088.6,0.58082478]
[1772762937157,0.55604306,2089.4,2088.6,0.58082478]
[1772762937956,0.55604306,2089.3,2088.6,0.58082478]
[1772762940758,0.55604306,2089.3,2088.3,46.75270157]
[1772762940759,0.57263417,2089.1,2088.2,0.59043157]
[1772762941056,0.23933,2089.0,2088.2,0.59043157]
[1772762941256,0.57263417,2088.8,2088.2,0.59043157]
[1772762941650,0.57263417,2088.8,2088.2,0.0039549]
[1772762941856,0.57263417,2088.4,2087.6,0.59043157]
[1772762942052,0.57263417,2088.2,2087.6,0.59043157]
[1772762942551,0.57263417,2088.1,2087.6,0.59043157]
[1772762942861,0.57263417,2088.1,2087.6,0.59401336]
[1772762943955,0.57263417,2088.1,2087.6,0.00358179]
[1772762945254,0.57263417,2088.3,2087.6,0.59401336]
[1772762949063,0.57263417,2088.3,2087.6,0.00358179]
[1772762950662,0.57263417,2088.3,2087.6,0.59401336]
[1772762952557,0.57263417,2088.3,2087.6,0.00358179]
[1772762952763,6.273,2088.4,2087.2,0.59043157]
[1772762952764,0.57263417,2088.1,2087.2,0.59043157]
[1772762953160,0.57263417,2087.9,2087.2,0.59043157]
[1772762953762,0.57745249,2087.9,2087.2,0.00506987]
[1772762953964,0.57745249,2087.9,2087.2,0.59550144]
[1772762954962,6.275,2087.8,2087.2,0.59550144]